[Event "44th Chess Olympiad Open 2022"]
[Site "Chennai"]
[Date "2022.08.06"]
[Round "8.72"]
[White "Yan, Austin K"]
[Black "Hlophe, Smilo"]
[Result "1-0"]
[WhiteElo "1568"]
[BlackElo "1731"]
[Annotator "NA RC"]
[PlyCount "71"]
[EventDate "2022.??.??"]
[TimeControl "60"]

1. b3 {[%emt 0:00:04]} Nf6 {[%emt 0:00:37]} 2. Bb2 {[%emt 0:00:05]} d5 {
[%emt 0:00:05]} 3. e3 {[%emt 0:00:07]} g6 {[%emt 0:00:10]} 4. Bxf6 {[%emt 0:00:
00]} exf6 {[%emt 0:00:01]} 5. d4 {[%emt 0:00:10]} Bd6 {[%emt 0:00:09]} 6. Bd3 {
[%emt 0:00:29]} c5 {[%emt 0:00:29]} 7. c3 {[%emt 0:01:39]} Nc6 {[%emt 0:00:07]}
8. Nd2 {[%emt 0:01:03]} Be6 {[%emt 0:00:21]} 9. Ngf3 {[%emt 0:00:54]} Qa5 {
[%emt 0:00:10]} 10. dxc5 {[%emt 0:00:40]} Qxc5 {[%emt 0:00:30]} 11. Rc1 {
[%emt 0:01:26]} O-O {[%emt 0:02:07]} 12. O-O {[%emt 0:00:32]} Rac8 {[%emt 0:00:
00]} 13. Qe2 {[%emt 0:05:12]} Qa5 {[%emt 0:01:32]} 14. Nb1 {[%emt 0:18:11]} Ne5
{[%emt 0:02:10]} 15. Nxe5 {[%emt 0:02:15]} fxe5 {[%emt 0:00:15]} 16. e4 {
[%emt 0:00:15]} f5 {[%emt 0:08:41]} 17. exd5 {[%emt 0:01:01]} Bxd5 {[%emt 0:00:
00]} 18. Rfd1 {[%emt 0:02:00]} Bb8 {[%emt 0:01:49]} 19. Bb5 {[%emt 0:06:39]}
Bf7 {[%emt 0:05:50]} 20. c4 {[%emt 0:02:06]} a6 {[%emt 0:02:32]} 21. Ba4 {
[%emt 0:01:26]} e4 {[%emt 0:02:11]} 22. Nd2 {[%emt 0:02:16]} Qe5 {[%emt 0:00:
00]} 23. Nf1 {[%emt 0:00:55]} Rfd8 {[%emt 0:00:00]} 24. Bd7 {[%emt 0:09:34]}
Rc7 {[%emt 0:00:20]} 25. Bxf5 {[%emt 0:02:51]} Rxd1 {[%emt 0:03:43]} 26. Rxd1 {
[%emt 0:00:14]} gxf5 {[%emt 0:01:22]} 27. Rd8+ {[%emt 0:00:07]} Kg7 {[%emt 0:
00:00]} 28. Rxb8 {[%emt 0:00:02]} Rd7 {[%emt 0:03:37]} 29. Rc8 {[%emt 0:00:48]}
Qa1 {[%emt 0:00:18]} 30. g3 {[%emt 0:07:24]} Rd1 {[%emt 0:00:11]} 31. Kg2 {
[%emt 0:00:12]} Re1 {[%emt 0:00:20]} 32. Qd2 {[%emt 0:00:17]} Rxf1 {[%emt 0:00:
00]} 33. Qg5+ {[%emt 0:00:15]} Bg6 {[%emt 0:01:01]} 34. Rc7+ {[%emt 0:00:01]}
Kf8 {[%emt 0:00:53]} 35. Qe7+ {[%emt 0:00:35]} Kg8 {[%emt 0:01:20]} 36. Qd8+ {
[%emt 0:00:13]} 1-0

[Event "44th Chess Olympiad Open 2022"]
[Site "Chennai"]
[Date "2022.08.06"]
[Round "8.72"]
[White "Nxumalo, Vuyo"]
[Black "Wu, Bing-Shen"]
[Result "0-1"]
[WhiteElo "1493"]
[BlackElo "1660"]
[Annotator "NA RC"]
[PlyCount "56"]
[EventDate "2022.??.??"]
[TimeControl "60"]

1. e4 {[%emt 0:00:08]} d6 {[%emt 0:00:09]} 2. d4 {[%emt 0:01:56]} Nf6 {[%emt 0:
00:00]} 3. Bd3 {[%emt 0:01:35]} Nc6 {[%emt 0:00:59]} 4. Ne2 {[%emt 0:00:32]}
Nb4 {[%emt 0:05:47]} 5. O-O {[%emt 0:00:53]} Nxd3 {[%emt 0:01:50]} 6. Qxd3 {
[%emt 0:00:13]} g6 {[%emt 0:00:37]} 7. Nd2 {[%emt 0:01:51]} Bg7 {[%emt 0:00:24]
} 8. f4 {[%emt 0:00:13]} O-O {[%emt 0:03:26]} 9. e5 {[%emt 0:00:26]} Nd5 {
[%emt 0:02:02]} 10. c3 {[%emt 0:00:33]} c5 {[%emt 0:06:57]} 11. Qf3 {[%emt 0:
00:00]} Be6 {[%emt 0:10:53]} 12. Ne4 {[%emt 0:04:23]} cxd4 {[%emt 0:06:43]} 13.
exd6 {[%emt 0:00:23]} dxc3 {[%emt 0:03:53]} 14. dxe7 {[%emt 0:00:34]} Qxe7 {
[%emt 0:00:24]} 15. N2xc3 {[%emt 0:00:26]} Nxc3 {[%emt 0:00:46]} 16. Nxc3 {
[%emt 0:00:11]} Bc4 {[%emt 0:04:58]} 17. Rd1 {[%emt 0:03:41]} Rfe8 {[%emt 0:00:
00]} 18. Bd2 {[%emt 0:03:59]} Qc5+ {[%emt 0:08:19]} 19. Kh1 {[%emt 0:01:05]}
Rad8 {[%emt 0:09:47]} 20. Rac1 {[%emt 0:02:33]} Rd3 {[%emt 0:13:43]} 21. Qxb7 {
[%emt 0:08:42]} Qd4 {[%emt 0:00:19]} 22. h3 {[%emt 0:07:24]} Rxd2 {[%emt 0:00:
00]} 23. Rxd2 {[%emt 0:00:40]} Qxd2 {[%emt 0:00:08]} 24. Rd1 {[%emt 0:00:10]}
Re1+ {[%emt 0:00:47]} 25. Rxe1 {[%emt 0:00:08]} Qxe1+ {[%emt 0:00:05]} 26. Kh2
{[%emt 0:00:13]} Bd4 {[%emt 0:00:24]} 27. Qc8+ {[%emt 0:05:04]} Kg7 {[%emt 0:
00:00]} 28. Qxc4 {[%emt 0:01:43]} Bg1+ {[%emt 0:00:08]} 0-1

[Event "44th Chess Olympiad Open 2022"]
[Site "Chennai"]
[Date "2022.08.06"]
[Round "8.73"]
[White "Adu-Poku, Kwabena"]
[Black "Njau, Albert"]
[Result "1/2-1/2"]
[WhiteElo "1974"]
[BlackElo "1842"]
[Annotator "NA RC"]
[PlyCount "80"]
[EventDate "2022.??.??"]
[TimeControl "60"]

1. d4 {[%emt 0:00:08]} Nf6 {[%emt 0:00:17]} 2. c4 {[%emt 0:00:14]} e6 {[%emt 0:
00:00]} 3. Nf3 {[%emt 0:00:26]} b6 {[%emt 0:00:21]} 4. g3 {[%emt 0:00:53]} Bb7
{[%emt 0:00:11]} 5. Bg2 {[%emt 0:00:05]} Bb4+ {[%emt 0:01:17]} 6. Bd2 {[%emt 0:
00:00]} a5 {[%emt 0:02:34]} 7. O-O {[%emt 0:03:03]} O-O {[%emt 0:00:23]} 8. a3
{[%emt 0:01:32]} Be7 {[%emt 0:02:05]} 9. Nc3 {[%emt 0:00:30]} Ne4 {[%emt 0:00:
00]} 10. Qc2 {[%emt 0:10:42]} Nxc3 {[%emt 0:02:43]} 11. Bxc3 {[%emt 0:01:04]}
f5 {[%emt 0:04:17]} 12. d5 {[%emt 0:03:26]} Qc8 {[%emt 0:23:23]} 13. Nd4 {
[%emt 0:05:47]} g6 {[%emt 0:12:26]} 14. f4 {[%emt 0:08:28]} c6 {[%emt 0:08:10]}
15. dxe6 {[%emt 0:06:12]} dxe6 {[%emt 0:00:14]} 16. e4 {[%emt 0:00:47]} Bc5 {
[%emt 0:08:30]} 17. Kh1 {[%emt 0:03:30]} Bxd4 {[%emt 0:03:36]} 18. Bxd4 {
[%emt 0:00:30]} c5 {[%emt 0:01:31]} 19. Bc3 {[%emt 0:00:17]} Ra7 {[%emt 0:00:
00]} 20. Rad1 {[%emt 0:02:17]} Bc6 {[%emt 0:02:37]} 21. Rfe1 {[%emt 0:02:06]}
Rd7 {[%emt 0:01:53]} 22. exf5 {[%emt 0:05:22]} exf5 {[%emt 0:10:19]} 23. b3 {
[%emt 0:07:26]} Re8 {[%emt 0:03:25]} 24. Bb2 {[%emt 0:01:19]} Bxg2+ {[%emt 0:
00:00]} 25. Kxg2 {[%emt 0:06:07]} Nc6 {[%emt 0:00:29]} 26. Kf2 {[%emt 0:02:28]}
Kf7 {[%emt 0:01:51]} 27. Bc3 {[%emt 0:03:59]} Rxd1 {[%emt 0:00:33]} 28. Rxd1 {
[%emt 0:03:40]} Qe6 {[%emt 0:01:01]} 29. Rd3 {[%emt 0:02:17]} Rd8 {[%emt 0:00:
00]} 30. Rxd8 {[%emt 0:07:50]} Nxd8 {[%emt 0:00:10]} 31. Qd3 {[%emt 0:00:21]}
Nc6 {[%emt 0:00:48]} 32. Qd5 {[%emt 0:00:52]} Ke7 {[%emt 0:01:12]} 33. Be5 {
[%emt 0:01:58]} Qxd5 {[%emt 0:00:58]} 34. cxd5 {[%emt 0:00:02]} Nd4 {[%emt 0:
00:00]} 35. b4 {[%emt 0:01:11]} axb4 {[%emt 0:00:51]} 36. axb4 {[%emt 0:00:01]}
Nc2 {[%emt 0:00:37]} 37. bxc5 {[%emt 0:00:53]} bxc5 {[%emt 0:00:18]} 38. Ke2 {
[%emt 0:00:50]} Nb4 {[%emt 0:00:24]} 39. d6+ {[%emt 0:00:12]} Ke6 {[%emt 0:00:
00]} 40. Kd2 {[%emt 0:00:18]} Nd5 {[%emt 0:01:02]} 1/2-1/2

[Event "44th Chess Olympiad Open 2022"]
[Site "Chennai"]
[Date "2022.08.06"]
[Round "8.73"]
[White "Mlawa, Hemed"]
[Black "Hasford, John Kojo"]
[Result "1/2-1/2"]
[WhiteElo "1896"]
[BlackElo "1976"]
[Annotator "NA RC"]
[PlyCount "86"]
[EventDate "2022.??.??"]
[TimeControl "60"]

1. d4 {[%emt 0:00:06]} Nf6 {[%emt 0:01:41]} 2. Bf4 {[%emt 0:00:12]} g6 {
[%emt 0:00:40]} 3. Nc3 {[%emt 0:00:06]} Bg7 {[%emt 0:00:33]} 4. e4 {[%emt 0:00:
00]} d6 {[%emt 0:00:13]} 5. Qd2 {[%emt 0:00:08]} Nc6 {[%emt 0:00:51]} 6. O-O-O
{[%emt 0:00:17]} O-O {[%emt 0:00:27]} 7. f3 {[%emt 0:00:17]} Nh5 {[%emt 0:00:
00]} 8. Bh6 {[%emt 0:00:14]} e5 {[%emt 0:00:48]} 9. Bxg7 {[%emt 0:11:19]} Kxg7
{[%emt 0:00:29]} 10. dxe5 {[%emt 0:04:09]} dxe5 {[%emt 0:02:24]} 11. Qe3 {
[%emt 0:06:06]} Nd4 {[%emt 0:01:21]} 12. Nce2 {[%emt 0:00:30]} c5 {[%emt 0:00:
00]} 13. c3 {[%emt 0:00:27]} Qc7 {[%emt 0:00:41]} 14. Kb1 {[%emt 0:03:23]} Nxe2
{[%emt 0:03:10]} 15. Nxe2 {[%emt 0:02:03]} Be6 {[%emt 0:00:19]} 16. g4 {
[%emt 0:02:30]} Nf4 {[%emt 0:00:41]} 17. Nxf4 {[%emt 0:01:57]} exf4 {[%emt 0:
00:00]} 18. Qc1 {[%emt 0:00:40]} h6 {[%emt 0:00:33]} 19. c4 {[%emt 0:01:40]}
Qe5 {[%emt 0:01:59]} 20. b3 {[%emt 0:01:59]} Rfd8 {[%emt 0:00:57]} 21. Be2 {
[%emt 0:02:08]} Rd4 {[%emt 0:00:18]} 22. Rxd4 {[%emt 0:00:35]} cxd4 {[%emt 0:
00:00]} 23. Qb2 {[%emt 0:01:29]} Rd8 {[%emt 0:00:44]} 24. Bd3 {[%emt 0:00:16]}
Rd6 {[%emt 0:01:38]} 25. Rc1 {[%emt 0:05:38]} Rc6 {[%emt 0:10:18]} 26. b4 {
[%emt 0:05:56]} a6 {[%emt 0:00:00]} 27. a3 {[%emt 0:00:59]} b6 {[%emt 0:04:22]}
28. b5 {[%emt 0:03:09]} axb5 {[%emt 0:00:00]} 29. cxb5 {[%emt 0:00:33]} Rc3 {
[%emt 0:00:00]} 30. Rxc3 {[%emt 0:01:21]} dxc3 {[%emt 0:00:00]} 31. Qb4 {
[%emt 0:00:25]} Kh7 {[%emt 0:01:02]} 32. Kc2 {[%emt 0:02:53]} h5 {[%emt 0:00:
00]} 33. h3 {[%emt 0:08:41]} Qg5 {[%emt 0:02:40]} 34. Qxc3 {[%emt 0:18:08]} Qh4
{[%emt 0:00:21]} 35. Qd2 {[%emt 0:05:53]} Qxh3 {[%emt 0:00:37]} 36. gxh5 {
[%emt 0:00:33]} Qxh5 {[%emt 0:01:34]} 37. Qxf4 {[%emt 0:06:06]} Qc5+ {[%emt 0:
00:00]} 38. Kd2 {[%emt 0:00:00]} Qxa3 {[%emt 0:01:00]} 39. Qh2+ {[%emt 0:00:00]
} Kg7 {[%emt 0:06:21]} 40. Qe5+ {[%emt 0:01:24]} Kf8 {[%emt 0:06:26]} 41. Qb8+
{[%emt 0:29:39]} Ke7 {[%emt 0:31:22]} 42. Qc7+ {[%emt 0:00:00]} Kf6 {[%emt 0:
00:00]} 43. Qf4+ {[%emt 0:00:00]} Kg7 {[%emt 0:00:00]} 1/2-1/2

[Event "44th Chess Olympiad Open 2022"]
[Site "Chennai"]
[Date "2022.08.06"]
[Round "8.73"]
[White "Adu Jnr, Lionel"]
[Black "Veer Gandhi"]
[Result "1-0"]
[WhiteElo "1824"]
[BlackElo "1545"]
[Annotator "NA RC"]
[PlyCount "105"]
[EventDate "2022.??.??"]
[TimeControl "60"]

1. g3 {[%emt 0:00:14]} d5 {[%emt 0:00:06]} 2. Bg2 {[%emt 0:00:04]} e5 {[%emt 0:
00:00]} 3. d4 {[%emt 0:00:21]} exd4 {[%emt 0:00:59]} 4. Qxd4 {[%emt 0:00:10]}
Nf6 {[%emt 0:00:15]} 5. Bg5 {[%emt 0:00:05]} Be7 {[%emt 0:00:24]} 6. Nc3 {
[%emt 0:02:59]} c6 {[%emt 0:04:46]} 7. Nf3 {[%emt 0:02:24]} h6 {[%emt 0:00:30]}
8. Bxf6 {[%emt 0:01:02]} Bxf6 {[%emt 0:00:20]} 9. Qb4 {[%emt 0:00:04]} a5 {
[%emt 0:13:09]} 10. Qb3 {[%emt 0:03:11]} O-O {[%emt 0:01:41]} 11. O-O {[%emt 0:
00:00]} Na6 {[%emt 0:04:03]} 12. a3 {[%emt 0:06:48]} Nc5 {[%emt 0:08:01]} 13.
Qa2 {[%emt 0:01:18]} Bf5 {[%emt 0:03:05]} 14. Rac1 {[%emt 0:01:20]} Re8 {
[%emt 0:11:25]} 15. e3 {[%emt 0:01:13]} Qb6 {[%emt 0:08:16]} 16. Rfd1 {[%emt 0:
00:00]} Bxc3 {[%emt 0:05:19]} 17. bxc3 {[%emt 0:00:43]} Ne4 {[%emt 0:02:20]}
18. Qb3 {[%emt 0:05:37]} Qc5 {[%emt 0:01:05]} 19. Nd4 {[%emt 0:01:17]} Bg6 {
[%emt 0:14:12]} 20. Bxe4 {[%emt 0:37:23]} Bxe4 {[%emt 0:00:18]} 21. Qxb7 {
[%emt 0:04:06]} Rec8 {[%emt 0:00:14]} 22. Qb2 {[%emt 0:01:58]} Rab8 {[%emt 0:
00:00]} 23. Qa1 {[%emt 0:00:40]} Qc4 {[%emt 0:01:43]} 24. Nb3 {[%emt 0:08:55]}
Qe2 {[%emt 0:04:13]} 25. Nd4 {[%emt 0:03:27]} Qh5 {[%emt 0:00:15]} 26. Rf1 {
[%emt 0:07:34]} c5 {[%emt 0:00:43]} 27. f3 {[%emt 0:00:15]} Bg6 {[%emt 0:00:09]
} 28. Ne2 {[%emt 0:03:47]} Qe5 {[%emt 0:02:15]} 29. Nf4 {[%emt 0:00:14]} Rb6 {
[%emt 0:06:34]} 30. Kf2 {[%emt 0:01:41]} Bf5 {[%emt 0:00:50]} 31. Rcd1 {
[%emt 0:01:27]} Rd6 {[%emt 0:01:25]} 32. Rd2 {[%emt 0:00:52]} Re8 {[%emt 0:00:
00]} 33. Re1 {[%emt 0:00:31]} g5 {[%emt 0:00:26]} 34. Nd3 {[%emt 0:00:29]} Qf6
{[%emt 0:00:36]} 35. Nxc5 {[%emt 0:00:49]} Bg4 {[%emt 0:00:36]} 36. f4 {
[%emt 0:01:12]} Qg6 {[%emt 0:00:43]} 37. Qc1 {[%emt 0:01:54]} Qh5 {[%emt 0:00:
00]} 38. Kg1 {[%emt 0:00:31]} Qh3 {[%emt 0:00:30]} 39. Nd3 {[%emt 0:00:31]} Bf3
{[%emt 0:00:26]} 40. Ne5 {[%emt 0:00:45]} Be4 {[%emt 0:00:33]} 41. Qd1 {
[%emt 0:30:18]} f5 {[%emt 0:08:30]} 42. Qe2 {[%emt 0:00:00]} g4 {[%emt 0:04:22]
} 43. c4 {[%emt 0:00:00]} Rc8 {[%emt 0:04:59]} 44. cxd5 {[%emt 0:00:00]} Rc3 {
[%emt 0:00:38]} 45. Qb5 {[%emt 0:00:00]} Rd8 {[%emt 0:00:55]} 46. Qxa5 {
[%emt 0:00:00]} Rdc8 {[%emt 0:00:13]} 47. Nc6 {[%emt 0:00:00]} h5 {[%emt 0:00:
00]} 48. Qxc3 {[%emt 0:00:00]} h4 {[%emt 0:00:08]} 49. Ne7+ {[%emt 0:00:00]}
Kf7 {[%emt 0:00:11]} 50. Qxc8 {[%emt 0:00:00]} hxg3 {[%emt 0:00:36]} 51. Qe6+ {
[%emt 0:00:00]} Kf8 {[%emt 0:01:57]} 52. Nxf5 {[%emt 0:00:00]} gxh2+ {[%emt 0:
00:00]} 53. Rxh2 {[%emt 0:00:00]} 1-0

[Event "44th Chess Olympiad Open 2022"]
[Site "Chennai"]
[Date "2022.08.06"]
[Round "8.73"]
[White "Mdoe, Yusuf"]
[Black "Fomevor, Cephas Clinton"]
[Result "1-0"]
[WhiteElo "1722"]
[BlackElo "1830"]
[Annotator "NA RC"]
[PlyCount "158"]
[EventDate "2022.??.??"]
[TimeControl "60"]

1. c4 {[%emt 0:00:04]} c6 {[%emt 0:00:10]} 2. g3 {[%emt 0:00:22]} Nf6 {[%emt 0:
00:00]} 3. Bg2 {[%emt 0:00:10]} d5 {[%emt 0:00:09]} 4. cxd5 {[%emt 0:00:39]}
cxd5 {[%emt 0:00:02]} 5. d4 {[%emt 0:00:24]} Nc6 {[%emt 0:01:51]} 6. Nc3 {
[%emt 0:00:30]} e6 {[%emt 0:00:39]} 7. Nf3 {[%emt 0:00:22]} Bd6 {[%emt 0:00:39]
} 8. O-O {[%emt 0:01:02]} b6 {[%emt 0:01:26]} 9. Bg5 {[%emt 0:02:00]} Bb7 {
[%emt 0:03:20]} 10. e4 {[%emt 0:08:50]} Be7 {[%emt 0:11:50]} 11. exd5 {[%emt 0:
00:00]} Nxd5 {[%emt 0:07:15]} 12. Nxd5 {[%emt 0:00:00]} exd5 {[%emt 0:08:23]}
13. Bxe7 {[%emt 0:00:00]} Nxe7 {[%emt 0:00:32]} 14. Re1 {[%emt 0:00:00]} O-O {
[%emt 0:00:21]} 15. h4 {[%emt 0:00:00]} Re8 {[%emt 0:03:25]} 16. Qd2 {[%emt 0:
00:00]} Rc8 {[%emt 0:09:30]} 17. Bh3 {[%emt 0:04:28]} Rb8 {[%emt 0:02:04]} 18.
Qg5 {[%emt 0:13:01]} h6 {[%emt 0:14:53]} 19. Qd2 {[%emt 0:08:10]} Bc8 {[%emt 0:
00:00]} 20. Bg2 {[%emt 0:04:32]} Qd6 {[%emt 0:03:52]} 21. Re5 {[%emt 0:02:05]}
Be6 {[%emt 0:01:51]} 22. Ne1 {[%emt 0:02:01]} Nc6 {[%emt 0:02:06]} 23. Re3 {
[%emt 0:01:41]} Rec8 {[%emt 0:02:19]} 24. a3 {[%emt 0:02:19]} Na5 {[%emt 0:00:
00]} 25. b3 {[%emt 0:00:30]} Rc7 {[%emt 0:01:45]} 26. Nd3 {[%emt 0:04:20]} Nxb3
{[%emt 0:00:54]} 27. Qb2 {[%emt 0:01:44]} Nxa1 {[%emt 0:00:26]} 28. Qxa1 {
[%emt 0:00:55]} Rbc8 {[%emt 0:00:16]} 29. Qb2 {[%emt 0:02:16]} Rc3 {[%emt 0:00:
00]} 30. a4 {[%emt 0:01:36]} Qa3 {[%emt 0:00:50]} 31. Qb5 {[%emt 0:01:04]} Rb3
{[%emt 0:02:48]} 32. Qa6 {[%emt 0:06:35]} Rc7 {[%emt 0:02:32]} 33. Kh2 {
[%emt 0:02:16]} Kh7 {[%emt 0:06:06]} 34. Rxe6 {[%emt 0:03:13]} fxe6 {[%emt 0:
00:00]} 35. Nf4 {[%emt 0:00:13]} Qd6 {[%emt 0:03:04]} 36. Qe2 {[%emt 0:00:53]}
Ra3 {[%emt 0:07:27]} 37. Nxe6 {[%emt 0:01:30]} Re7 {[%emt 0:01:50]} 38. Qc2+ {
[%emt 0:00:52]} Kg8 {[%emt 0:01:50]} 39. Qc8+ {[%emt 0:00:41]} Kf7 {[%emt 0:00:
00]} 40. Qf8+ {[%emt 0:00:35]} Kg6 {[%emt 0:00:31]} 41. h5+ {[%emt 0:32:27]}
Kh7 {[%emt 0:08:43]} 42. Qf5+ {[%emt 0:00:00]} Kh8 {[%emt 0:06:06]} 43. Bxd5 {
[%emt 0:00:00]} Rxe6 {[%emt 0:01:39]} 44. Bxe6 {[%emt 0:00:00]} Rxa4 {[%emt 0:
00:00]} 45. Qb5 {[%emt 0:00:00]} Qxe6 {[%emt 0:02:24]} 46. Qxa4 {[%emt 0:00:00]
} a5 {[%emt 0:01:14]} 47. Qb5 {[%emt 0:00:00]} Qf6 {[%emt 0:03:20]} 48. Qe8+ {
[%emt 0:00:00]} Kh7 {[%emt 0:00:06]} 49. Qe4+ {[%emt 0:00:00]} Kg8 {[%emt 0:00:
00]} 50. f4 {[%emt 0:00:00]} Kf7 {[%emt 0:02:05]} 51. d5 {[%emt 0:00:00]} Qd6 {
[%emt 0:02:32]} 52. g4 {[%emt 0:00:00]} b5 {[%emt 0:00:25]} 53. Kh3 {[%emt 0:
00:00]} b4 {[%emt 0:02:12]} 54. g5 {[%emt 0:02:17]} b3 {[%emt 0:00:59]} 55. g6+
{[%emt 0:04:21]} Kf8 {[%emt 0:00:22]} 56. Qf5+ {[%emt 0:01:12]} Ke8 {[%emt 0:
00:00]} 57. Qf7+ {[%emt 0:00:14]} Kd8 {[%emt 0:00:10]} 58. Qg8+ {[%emt 0:01:09]
} Kc7 {[%emt 0:00:17]} 59. Qxg7+ {[%emt 0:00:48]} Qd7+ {[%emt 0:00:01]} 60.
Qxd7+ {[%emt 0:01:10]} Kxd7 {[%emt 0:00:01]} 61. g7 {[%emt 0:00:24]} b2 {
[%emt 0:00:21]} 62. g8=Q {[%emt 0:01:17]} b1=Q {[%emt 0:00:06]} 63. Qe6+ {
[%emt 0:03:47]} Kd8 {[%emt 0:00:57]} 64. Qf6+ {[%emt 0:02:28]} Kd7 {[%emt 0:00:
00]} 65. Qe6+ {[%emt 0:00:53]} Kd8 {[%emt 0:00:27]} 66. d6 {[%emt 0:00:29]}
Qh1+ {[%emt 0:01:20]} 67. Kg4 {[%emt 0:01:21]} Qg2+ {[%emt 0:01:21]} 68. Kf5 {
[%emt 0:00:39]} Qh3+ {[%emt 0:01:19]} 69. Kf6 {[%emt 0:00:17]} Qh4+ {[%emt 0:
00:00]} 70. Kg6 {[%emt 0:00:40]} Qg3+ {[%emt 0:00:32]} 71. Kh7 {[%emt 0:00:24]}
Qh4 {[%emt 0:00:25]} 72. Qxh6 {[%emt 0:01:09]} a4 {[%emt 0:00:31]} 73. Qg5+ {
[%emt 0:00:56]} Qxg5 {[%emt 0:00:02]} 74. fxg5 {[%emt 0:00:12]} a3 {[%emt 0:00:
00]} 75. g6 {[%emt 0:00:03]} a2 {[%emt 0:00:05]} 76. g7 {[%emt 0:00:34]} a1=Q {
[%emt 0:00:00]} 77. g8=Q+ {[%emt 0:00:19]} Kd7 {[%emt 0:00:20]} 78. Qg7+ {
[%emt 0:00:30]} Qxg7+ {[%emt 0:00:30]} 79. Kxg7 {[%emt 0:00:30]} Kxd6 {[%emt 0:
00:00]} 1-0

[Event "44th Chess Olympiad Open 2022"]
[Site "Chennai"]
[Date "2022.08.06"]
[Round "8.74"]
[White "Prudente, Elmer"]
[Black "Amba Oyon Marius Claude"]
[Result "1-0"]
[WhiteElo "1995"]
[BlackElo "1938"]
[Annotator "NA RC"]
[PlyCount "79"]
[EventDate "2022.??.??"]
[TimeControl "60"]

1. e4 {[%emt 0:00:04]} c5 {[%emt 0:00:12]} 2. Nf3 {[%emt 0:00:06]} e6 {[%emt 0:
00:00]} 3. d4 {[%emt 0:00:10]} cxd4 {[%emt 0:00:12]} 4. Nxd4 {[%emt 0:00:01]}
a6 {[%emt 0:00:13]} 5. c4 {[%emt 0:00:16]} Qc7 {[%emt 0:00:26]} 6. Nc3 {
[%emt 0:01:03]} Nf6 {[%emt 0:00:19]} 7. a3 {[%emt 0:04:57]} Be7 {[%emt 0:00:32]
} 8. Be2 {[%emt 0:00:14]} Nc6 {[%emt 0:00:33]} 9. Be3 {[%emt 0:00:19]} b6 {
[%emt 0:03:43]} 10. O-O {[%emt 0:01:11]} h5 {[%emt 0:00:42]} 11. h3 {[%emt 0:
00:00]} Bb7 {[%emt 0:00:23]} 12. Qc2 {[%emt 0:07:39]} Rc8 {[%emt 0:06:21]} 13.
Rac1 {[%emt 0:00:35]} Qb8 {[%emt 0:01:07]} 14. Nxc6 {[%emt 0:18:15]} Bxc6 {
[%emt 0:00:54]} 15. Qd3 {[%emt 0:02:29]} h4 {[%emt 0:08:45]} 16. b4 {[%emt 0:
00:00]} Ba8 {[%emt 0:07:30]} 17. Rfd1 {[%emt 0:03:01]} Rd8 {[%emt 0:00:00]} 18.
Qd4 {[%emt 0:01:58]} e5 {[%emt 0:03:26]} 19. Qxb6 {[%emt 0:03:19]} Qxb6 {
[%emt 0:01:12]} 20. Bxb6 {[%emt 0:00:08]} Rb8 {[%emt 0:00:27]} 21. Bc7 {
[%emt 0:00:08]} Rc8 {[%emt 0:00:42]} 22. Bxe5 {[%emt 0:00:19]} O-O {[%emt 0:00:
00]} 23. Bxf6 {[%emt 0:04:09]} Bxf6 {[%emt 0:00:10]} 24. Rxd7 {[%emt 0:00:18]}
Bxc3 {[%emt 0:01:21]} 25. Rxc3 {[%emt 0:00:09]} Bxe4 {[%emt 0:00:12]} 26. Ra7 {
[%emt 0:00:47]} Rc6 {[%emt 0:00:26]} 27. c5 {[%emt 0:00:12]} Rg6 {[%emt 0:00:
00]} 28. f3 {[%emt 0:00:13]} Bf5 {[%emt 0:00:45]} 29. Bxa6 {[%emt 0:00:42]}
Bxh3 {[%emt 0:00:16]} 30. Rc2 {[%emt 0:00:41]} Bf5 {[%emt 0:00:21]} 31. Rd2 {
[%emt 0:00:25]} Re8 {[%emt 0:00:17]} 32. Bc4 {[%emt 0:01:18]} Rf6 {[%emt 0:00:
00]} 33. Kf2 {[%emt 0:00:25]} Bg6 {[%emt 0:00:44]} 34. b5 {[%emt 0:00:19]} h3 {
[%emt 0:00:26]} 35. gxh3 {[%emt 0:00:26]} Bh5 {[%emt 0:00:01]} 36. Rd3 {
[%emt 0:00:30]} Re4 {[%emt 0:00:13]} 37. Bd5 {[%emt 0:01:58]} Re8 {[%emt 0:00:
00]} 38. b6 {[%emt 0:02:17]} Rd8 {[%emt 0:01:47]} 39. Bxf7+ {[%emt 0:00:19]}
Bxf7 {[%emt 0:00:25]} 40. Rxd8+ {[%emt 0:00:09]} 1-0